Workbook

Sheet 1-6,15-20.05.2023
A1: Школа | B1: МБОУ "Школа №113" | E1: Отд./корп | I1: День | J1: 2023-05-22
A3: Прием пищи | B3: Раздел | C3: № рец. | D3: Блюдо | E3: Выход, г | F3: Цена, руб | G3: Калорийность, ккал | H3: Белки,г | I3: Жиры,г | J3: Углеводы,г
A4: Завтрак | B4: гор.блюдо | C4: ТТК 2022 г | D4: Ёжики мясные с рисом в соусе томатном | E4: 100 | G4: 170.00 | H4: 9.56 | I4: 10.92 | J4: 9.00
B5: гор блюдо | C5: № 202/2015 | D5: Макаронные изделия отварные | E5: 150 | G5: 207.00 | H5: 5.64 | I5: 4.46 | J5: 35.94
B6: гор.напиток | C6: № 648/2004 г | D6: Компот из замороженной компотной смеси | E6: 180 | G6: 41 | H6: 0.12 | I6: 0.02 | J6: 10.03
A7: понедельник | B7: хлеб | D7: Хлеб ржано-пшеничный | E7: 30 | G7: 66.00 | H7: 1.50 | I7: 0.30 | J7: 13.50
C8: № 71/2015 г | D8: Овощи натуральные свежие (огурцы) (доп гарнир) | E8: 60 | G8: 7.00 | H8: 0.42 | I8: 0.06 | J8: 1.14
B9: фрукт | C9: № 338/2015г | D9: Плоды свежие (яблоки) | E9: 100 | G9: 47.00 | H9: 0.40 | I9: 0.40 | J9: 9.80
A10: ИТОГО | E10: =E4+E5+E6+E7+E8+E9 -> 620 | F10: 62.10 | G10: =G4+G5+G6+G7+G8+G9 -> 538 | H10: =H4+H5+H6+H7+H8+H9 -> 17.64 | I10: =I4+I5+I6+I7+I8+I9 -> 16.16 | J10: =J4+J5+J6+J7+J8+J9 -> 79.41

Sheet 8-13, 22-27.05.2023
A1: Школа | B1: - | E1: Отд./корп | I1: День
A3: Прием пищи | B3: Раздел | C3: № рец. | D3: Блюдо | E3: Выход, г | F3: Цена, руб | G3: Калорийность, ккал | H3: Белки,г | I3: Жиры,г | J3: Углеводы,г
A4: Завтрак | B4: гор.блюдо | C4: ТТК 2022 г | D4: Ёжики мясные с рисом в соусе томатном | E4: 100 | G4: 170.00 | H4: 9.56 | I4: 10.92 | J4: 9.00
B5: гор блюдо | C5: № 202/2015 | D5: Макаронные изделия отварные | E5: 150 | G5: 207.00 | H5: 5.64 | I5: 4.46 | J5: 35.94
B6: гор.напиток | C6: № 648/2004 г | D6: Компот из замороженной компотной смеси | E6: 180 | G6: 41 | H6: 0.12 | I6: 0.02 | J6: 10.03
A7: понедельник | B7: хлеб | D7: Хлеб ржано-пшеничный | E7: 25 | G7: 55.00 | H7: 1.25 | I7: 0.25 | J7: 11.25
C8: № 71/2015 г | D8: Овощи натуральные свежие (огурцы) | E8: 60 | G8: 7.00 | H8: 0.42 | I8: 0.06 | J8: 1.14
C9: № 71/2015г | D9: Вафли весовые | E9: 40 | G9: 93.00 | H9: 2.26 | I9: 2.24 | J9: 16.00
A10: ИТОГО | E10: =E4+E5+E6+E7+E8+E9 -> 555 | F10: 62.10 | G10: =G4+G5+G6+G7+G8+G9 -> 573 | H10: =H4+H5+H6+H7+H8+H9 -> 19.25 | I10: =I4+I5+I6+I7+I8+I9 -> 17.95 | J10: =J4+J5+J6+J7+J8+J9 -> 83.36
A11: Завтрак | B11: гор.блюдо | C11: ТТК 2021г | D11: Рагу из куриных грудок | E11: 200 | G11: 302 | H11: 13.04 | I11: 15.22 | J11: 28.20
A12: вторник | B12: гор.напиток | C12: ТТК 2021 г | D12: Кисель из концетрата | E12: 180 | G12: 47.00 | J12: 11.80
B13: хлеб | D13: Хлеб ржано-пшеничный | E13: 20 | G13: 44.00 | H13: 1.00 | I13: 0.20 | J13: 9.00
B14: хлеб | D14: Хлеб пшеничный | E14: 20 | G14: 47.00 | H14: 1.52 | I14: 0.16 | J14: 9.84
C15: 70/2015 | D15: Овощи натуральные соленые (огурцы)-доп.гарн | E15: 20 | G15: 5.00 | H15: 0.22 | I15: 0.04 | J15: 0.76
B16: фрукт | C16: № 338/2015г | D16: Плоды свежие (яблоки) | E16: 100 | G16: 47.00 | H16: 0.40 | I16: 0.40 | J16: 9.80
A17: ИТОГО | E17: =E11+E12+E13+E14+E15+E16 -> 540 | F17: 62.10 | G17: =G11+G12+G13+G14+G15+G16 -> 492.00 | H17: =H11+H12+H13+H14+H15+H16 -> 16.18 | I17: 16.02 | J17: 69.40
A18: Завтрак | B18: гор.блюдо | C18: ТТК 2021г | D18: Бифштекс рубленный по-домашнему | E18: 90 | G18: 162 | H18: 9.40 | I18: 10.2 | J18: 8.36
B19: гор.блюдо | C19: № 302/2015г | D19: Каша гречневая рассыпчатая | E19: 150 | G19: 242.00 | H19: 6.62 | I19: 5.39 | J19: 41.87
A20: среда | B20: гор.напиток | C20: ТТК 2021 г | D20: Чай с сахором, лимоном | E20: 192 | G20: 31 | H20: 0.06 | I20: 0.01 | J20: 7.34
B21: хлеб | D21: Хлеб ржано-пшеничный | E21: 15 | G21: 33.00 | H21: 0.75 | I21: 0.15 | J21: 6.75
B22: хлеб | D22: Хлеб пшеничный | E22: 15 | G22: 35.00 | H22: 1.14 | I22: 0.12 | J22: 7.38
C23: № 20/2015г | D23: Салат из свежих огурцов | E23: 60 | G23: 39.00 | H23: 0.39 | I23: 3.65 | J23: 1.08
A24: ИТОГО | E24: =E18+E19+E20+E21+E22+E23 -> 522 | F24: 62.10 | G24: =G18+G19+G20+G21+G22+G23 -> 542.00 | H24: =H18+H19+H20+H21+H22+H23 -> 18.36 | I24: 19.52 | J24: 72.78
A25: Завтрак | B25: гор.блюдо | C25: ТТК 2021г | D25: Плов из куриных грудок | E25: 200 | G25: 342.00 | H25: 13.40 | I25: 13.80 | J25: 41.10
B26: гор.напиток | C26: ТТК 2021г | D26: Чай с сахором | E26: 187 | G26: 29.00 | H26: 0.02 | J26: 7.19
B27: хлеб | D27: Хлеб ржано-пшеничный | E27: 25 | G27: 55.00 | H27: 1.25 | I27: 0.25 | J27: 11.25
A28: четверг | D28: Ассорти овощное (помидоры, огурцы свежие с маслом) | E28: 65 | G28: 55.00 | H28: 0.54 | I28: 5.08 | J28: 1.71
B29: фрукт | C29: №338/2015 | D29: Плоды свежие (яблоки) | E29: 100 | G29: 47.00 | H29: 0.40 | I29: 0.40 | J29: 9.80
A30: ИТОГО | E30: =E25+E26+E27+E28+E29 -> 577 | F30: 62.10 | G30: =G25+G26+G27+G28+G29 -> 528.00 | H30: =H25+H26+H27+H28+H29 -> 15.61 | I30: =I25+I26+I27+I28+I29 -> 19.53 | J30: =J25+J26+J27+J28+J29 -> 71.05
A31: Завтрак | B31: гор.блюдо | C31: ТТК 2023 г | D31: Жаркое по - домашнему | E31: 185 | G31: 344 | H31: 13.6 | I31: 15.2 | J31: 38.3
B32: гор.напиток | C32: ТТК 2021г | D32: Напиток из замороженной черной смородины | E32: 180 | G32: 40.00 | H32: 0.09 | I32: 0.03 | J32: 9.64
B33: хлеб | D33: Хлеб ржано-пшеничный | E33: 20 | G33: 44.00 | H33: 1.00 | I33: 0.20 | J33: 9.00
A34: пятница | B34: хлеб | D34: Хлеб пшеничный | E34: 20 | G34: 47.00 | H34: 1.52 | I34: 0.16 | J34: 9.84
D35: Овощи натуральные свежие (помидоры) (доп. гарнир) | E35: 30 | G35: 7 | H35: 0.33 | I35: 0.06 | J35: 1.14
B36: фрукт | C36: №338/2015 | D36: Плоды свежие (яблоки) | E36: 100 | G36: 47.00 | H36: 0.40 | I36: 0.40 | J36: 9.80
A37: ИТОГО | E37: =E31+E32+E33+E34+E35+E36 -> 535 | F37: 62.10 | G37: =G31+G32+G33+G34+G35+G36 -> 529 | H37: =H31+H32+H33+H34+H35+H36 -> 16.94 | I37: =I31++I32+I33+I34+I35+I36 -> 16.05 | J37: =J31+J32+J33+J34+J35+J36 -> 77.72
A38: Завтрак | B38: гор.блюдо | C38: №243/2015г | D38: Пельмени "Для Умников и умниц" с соусом "Переменка" | E38: 170 | G38: 272 | H38: 13.60 | I38: 14.80 | J38: 21.45
B40: гор.напиток | C40: ТТК 20121г | D40: Напиток из шиповника | E40: 180 | G40: 37 | H40: 0.01 | J40: 9.16
B41: хлеб | D41: Хлеб ржано-пшеничный | E41: 25 | G41: 55.00 | H41: 1.25 | I41: 0.25 | J41: 11.25
B42: фрукт | C42: №338/2015 | D42: Плоды свежие (яблоки) | E42: 100 | G42: 47.00 | H42: 0.40 | I42: 0.40 | J42: 9.80
A43: Суббота | B43: Печенье | D43: Печенье весовое | E43: 45 | G43: 134 | H43: 2.07 | I43: 4.14 | J43: 22.23
A44: ИТОГО | E44: =E38+E39+E40+E41+E42+E43 -> 520 | F44: 62.10 | G44: =G38+G39+G40+G41+G42+G43 -> 545.00 | H44: =H38+H39+H40+H41+H42+H43 -> 17.33 | I44: =I38+I39+I40+I41+I42+I43 -> 19.59 | J44: =J38+J39+J40+J41+J42+J43 -> 73.89
